[Event "95th Caplin Hastings Congress"]
[Site "Hastings"]
[Date "2019.12.31"]
[Round "4.46"]
[White "Gisbert Mir, Alejandro"]
[Black "Howell, Oliver W"]
[Result "0-1"]
[ECO "D12"]
[WhiteElo "1835"]
[BlackElo "1928"]
[Annotator "NA"]
[PlyCount "76"]
[EventDate "2019.12.28"]
[EventType "swiss"]
[EventCountry "ENG"]
[SourceTitle "playchess.com"]
[Source "ChessBase"]
[SourceQuality "1"]
[TimeControl "40/6600+30:3000+30"]

1. d4 {[%emt 0:09:40]} d5 {[%emt 0:00:38]} 2. c4 {[%emt 0:00:31]} c6 {[%emt 0:09:08]} 3. Nf3 {[%emt 0:00:07]} Nf6 {[%emt 0:00:05]} 4. e3 {[%emt 0:00:04]} Bf5 {[%emt 0:00:27]} 5. Nc3 {[%emt 0:01:48]} e6 {[%emt 0:00:18]} 6. Nh4 {[%emt 0:01:04]} Bg4 {[%emt 0:00:35]} 7. Qb3 {[%emt 0:00:40]} Qb6 {[%emt 0:05:23]} 8. c5 {[%emt 0:01:57] D12: Slav Defence: 3 Nf3 Nf6 4 e3 Bf5} (8. h3 Bh5 9. g4 Bg6 10. Nxg6 hxg6 11. g5 Ne4 12. Nxe4 dxe4 13. h4 Bb4+ 14. Ke2 Nd7 15. Bg2 f5 16. gxf6 Nxf6 17. Qc2 Qa5 18. Bxe4 Nxe4 19. Qxe4 {1-0 (33) Esipenko,A (2620)-Tsydypov,Z (2546) Sochi 2019}) 8... Qc7 {[%emt 0:01:16]} 9. h3 {[%emt 0:01:23]} Bh5 {[%emt 0:01:04]} 10. g4 {[%emt 0:01:36]} Bg6 {[%emt 0:00:22]} 11. Nxg6 {[%emt 0:00:36]} hxg6 {[%emt 0:03:41]} 12. Bg2 {[%emt 0:00:19]} Be7 {[%emt 0:00:52]} 13. Bd2 {[%emt 0:01:59]} Nbd7 {[%emt 0:03:39]} 14. Qc2 {[%emt 0:09:15]} b6 {[%emt 0:04:03]} 15. b4 $146 {[%emt 0:08:50]} ({Predecessor:} 15. cxb6 Nxb6 {1-0 (72) Graczyk,D (2122)-Pazdziora,M (2211) Jastrzebia Gora 2018}) 15... a5 {[%emt 0:10:36]} 16. bxa5 {[%emt 0:02:01]} bxc5 {[%emt 0:01:16]} 17. dxc5 {[%emt 0:03:33]} Nxc5 {[%emt 0:02:32]} 18. g5 {[%emt 0:12:37]} Nfd7 {[%emt 0:05:56]} 19. f4 {[%emt 0:10:57]} e5 {[%emt 0:09:36]} 20. O-O {[%emt 0:01:12]} e4 {[%emt 0:03:30]} 21. Ne2 {[%emt 0:01:19]} Nd3 {[%emt 0:04:35]} 22. Rab1 {[%emt 0:04:44]} O-O {[%emt 0:14:17]} 23. Nd4 {[%emt 0:07:42]} Rfc8 {[%emt 0:05:54]} 24. h4 {[%emt 0:01:11]} N7c5 {[%emt 0:05:43]} 25. Rb6 {[%emt 0:08:35]} Qd7 {[%emt 0:11:36]} 26. Kh2 {[%emt 0:01:37]} Qg4 {[%emt 0:04:36]} ({Black should play} 26... Qe8 $17 27. Bh3 Bd8) 27. Nxc6 $2 {[%emt 0:11:18]} (27. Bh3 $1 $15 Qxh4 28. Kg2) 27... Qxh4+ {[%emt 0:01:53]} 28. Kg1 {[%emt 0:00:02]} Bd8 {[%emt 0:00:27]} 29. Nxd8 {[%emt 0:02:27]} Rxd8 {[%emt 0:00:05]} 30. Rc6 {[%emt 0:06:53]} Rdc8 {[%emt 0:01:49]} 31. Rxc8+ {[%emt 0:00:08]} Rxc8 {[%emt 0:00:04]} 32. Rb1 $19 {[%emt 0:01:06]} (32. Qd1 $17) 32... Qf2+ {[%emt 0:00:46]} 33. Kh1 {[%emt 0:00:01]} Kh7 {[%emt 0:00:49]} 34. Rf1 {[%emt 0:00:48]} Qh4+ {[%emt 0:00:13]} 35. Kg1 {[%emt 0:00:03]} Rb8 {[%emt 0:01:26]} 36. Rb1 {[%emt 0:00:14]} Qf2+ {[%emt 0:00:10]} 37. Kh2 {[%emt 0:00:34]} Rxb1 {[%emt 0:00:47]} 38. Qxb1 {[%emt 0:01:15]} Qxd2 {[%emt 0:00:08]} 0-1

[Event "95th Caplin Hastings Congress"]
[Site "Hastings"]
[Date "2019.12.31"]
[Round "4.47"]
[White "Thorpe, Thomas"]
[Black "Drastik, Penelope"]
[Result "1-0"]
[ECO "B23"]
[WhiteElo "1924"]
[BlackElo "1821"]
[Annotator "NA"]
[PlyCount "33"]
[EventDate "2019.12.28"]
[EventType "swiss"]
[EventCountry "ENG"]
[SourceTitle "playchess.com"]
[Source "ChessBase"]
[SourceQuality "1"]
[TimeControl "40/6600+30:3000+30"]

1. e4 {[%emt 0:09:33]} c5 {[%emt 0:09:32]} 2. Nc3 {[%emt 0:00:31]} Nc6 {[%emt 0:00:04]} 3. Bb5 {[%emt 0:00:29]} Nd4 {[%emt 0:00:03]} 4. Bc4 {[%emt 0:00:10]} e6 {[%emt 0:00:49]} 5. Nge2 {[%emt 0:00:54]} Nf6 {[%emt 0:00:19]} 6. O-O {[%emt 0:00:12]} a6 {[%emt 0:00:18]} 7. a4 {[%emt 0:07:49]} Be7 {[%emt 0:02:27]} 8. d3 {[%emt 0:02:01]} d5 {[%emt 0:00:22]} 9. Ba2 {[%emt 0:05:01]} O-O {[%emt 0:01:32]} 10. exd5 {[%emt 0:01:24]} exd5 {[%emt 0:02:20]} 11. Nxd4 {[%emt 0:01:43]} cxd4 {[%emt 0:00:06]} 12. Ne2 {[%emt 0:00:37]} Qb6 {[%emt 0:07:42]} 13. Bf4 {[%emt 0:04:38]} Bg4 {[%emt 0:11:53]} 14. f3 {[%emt 0:02:31]} Be6 {[%emt 0:00:07]} 15. Be5 {[%emt 0:04:20]} Qxb2 {[%emt 0:00:27]} 16. Bb3 {[%emt 0:00:21]} Rac8 {[%emt 0:01:26]} 17. Ra2 {[%emt 0:00:34]} 1-0

[Event "95th Caplin Hastings Congress"]
[Site "Hastings"]
[Date "2019.12.31"]
[Round "4.49"]
[White "Khoo-Thwe, Louis"]
[Black "Jukes, Sam"]
[Result "0-1"]
[ECO "C55"]
[WhiteElo "1690"]
[BlackElo "1906"]
[Annotator "NA"]
[PlyCount "72"]
[EventDate "2019.12.28"]
[EventType "swiss"]
[EventCountry "ENG"]
[SourceTitle "playchess.com"]
[Source "ChessBase"]
[SourceQuality "1"]
[TimeControl "40/6600+30:3000+30"]

1. e4 {[%emt 0:09:33]} e5 {[%emt 0:09:38]} 2. Nf3 {[%emt 0:00:04]} Nc6 {[%emt 0:00:03]} 3. Bc4 {[%emt 0:00:07]} Nf6 {[%emt 0:00:05]} 4. d3 {[%emt 0:00:05]} Be7 {[%emt 0:00:13]} 5. O-O {[%emt 0:00:11]} O-O {[%emt 0:00:40]} 6. c3 {[%emt 0:00:24]} d5 {[%emt 0:02:22]} 7. exd5 {[%emt 0:00:10]} Nxd5 {[%emt 0:00:06]} 8. Re1 {[%emt 0:00:17]} Bg4 {[%emt 0:03:56]} 9. h3 {[%emt 0:00:10]} Bh5 {[%emt 0:00:54]} 10. g4 {[%emt 0:04:19]} Bg6 {[%emt 0:00:05]} 11. Nxe5 {[%emt 0:01:35]} Nxe5 {[%emt 0:00:06]} 12. Rxe5 {[%emt 0:00:07]} Nb6 {[%emt 0:00:10]} 13. Qe2 {[%emt 0:00:49]} Bf6 {[%emt 0:01:24]} 14. Ra5 {[%emt 0:03:49]} Nxc4 {[%emt 0:02:19]} 15. dxc4 {[%emt 0:00:07]} c6 {[%emt 0:07:23]} 16. Ra4 {[%emt 0:02:55]} Bd3 {[%emt 0:00:39]} 17. Qf3 {[%emt 0:02:23]} Re8 {[%emt 0:00:54]} 18. Be3 {[%emt 0:01:01]} Bc2 {[%emt 0:07:39]} 19. Rb4 {[%emt 0:02:06]} c5 {[%emt 0:05:32]} 20. Rb5 {[%emt 0:02:33]} b6 {[%emt 0:01:38]} 21. Na3 {[%emt 0:03:21]} Ba4 {[%emt 0:05:16]} 22. b3 {[%emt 0:00:58]} Bxb5 {[%emt 0:03:39]} 23. Nxb5 {[%emt 0:00:25]} a6 {[%emt 0:01:53]} 24. Rd1 {[%emt 0:00:12]} Qe7 {[%emt 0:00:15]} 25. Nd6 {[%emt 0:00:55]} Red8 {[%emt 0:01:46]} 26. Bf4 {[%emt 0:01:39]} Ra7 {[%emt 0:03:18]} 27. Qd5 {[%emt 0:07:57]} Rad7 {[%emt 0:02:34]} 28. Rd3 {[%emt 0:02:47]} h6 {[%emt 0:04:55]} 29. Kf1 {[%emt 0:05:18]} Qf8 {[%emt 0:04:54]} 30. Qc6 {[%emt 0:19:27]} Be7 {[%emt 0:03:50]} 31. Qxb6 {[%emt 0:01:39]} Bxd6 {[%emt 0:01:08]} 32. Be3 {[%emt 0:03:21]} Bc7 {[%emt 0:02:34]} 33. Qc6 {[%emt 0:01:15]} Rxd3 {[%emt 0:00:20]} 34. Qxc7 {[%emt 0:00:08]} Qd6 {[%emt 0:01:09]} 35. Qb7 {[%emt 0:01:19]} Qh2 {[%emt 0:00:40]} 36. a4 {[%emt 0:00:24]} Rxe3 {[%emt 0:00:24]} 0-1

[Event "95th Caplin Hastings Congress"]
[Site "Hastings"]
[Date "2019.12.31"]
[Round "4.50"]
[White "Jennings, Richard"]
[Black "Verma, Shlok"]
[Result "1/2-1/2"]
[ECO "D02"]
[WhiteElo "1903"]
[BlackElo "1691"]
[Annotator "NA RC"]
[PlyCount "101"]
[EventDate "2019.12.28"]
[EventType "swiss"]
[EventCountry "ENG"]
[SourceTitle "playchess.com"]
[Source "ChessBase"]
[SourceQuality "1"]
[TimeControl "40/6600+30:3000+30"]

1. d4 {[%emt 0:09:35]} d5 {[%emt 0:09:43]} 2. Nf3 {[%emt 0:00:20]} Nf6 {[%emt 0:00:18]} 3. Bf4 {[%emt 0:00:40]} Bf5 {[%emt 0:03:20]} 4. Nh4 {[%emt 0:01:01]} Bd7 {[%emt 0:00:49]} 5. e3 {[%emt 0:01:44]} e6 {[%emt 0:00:11]} 6. Nd2 {[%emt 0:03:47]} c5 {[%emt 0:02:26]} 7. c3 {[%emt 0:03:19]} Nc6 {[%emt 0:04:40]} 8. Bd3 {[%emt 0:05:30]} h6 {[%emt 0:04:13]} 9. Bg3 {[%emt 0:04:32]} Be7 {[%emt 0:00:28]} 10. f4 {[%emt 0:09:58]} Ne4 {[%emt 0:06:50]} 11. Nhf3 {[%emt 0:06:37]} Nxg3 {[%emt 0:10:22]} 12. hxg3 {[%emt 0:00:25]} Qc7 {[%emt 0:00:32]} 13. e4 {[%emt 0:06:39]} O-O-O {[%emt 0:09:50]} 14. Bb5 {[%emt 0:09:24]} g5 {[%emt 0:12:13]} 15. Bxc6 {[%emt 0:06:59]} Bxc6 {[%emt 0:00:10]} 16. e5 {[%emt 0:00:23]} Rdg8 {[%emt 0:01:08]} 17. O-O {[%emt 0:12:28]} g4 {[%emt 0:04:12]} 18. Ne1 {[%emt 0:04:36]} h5 {[%emt 0:02:05]} 19. Nd3 {[%emt 0:01:32]} Bb5 {[%emt 0:02:24]} 20. Qe2 {[%emt 0:05:23]} h4 {[%emt 0:02:05]} 21. Qe3 {[%emt 0:03:10]} hxg3 {[%emt 0:01:09]} 22. a4 {[%emt 0:01:14]} Bxd3 {[%emt 0:00:44]} 23. Qxd3 {[%emt 0:00:08]} Rh6 {[%emt 0:00:35]} 24. Qxg3 $2 {[%emt 0:01:41]} (24. Rfd1 {was necessary.}) 24... Bh4 $2 {[%emt 0:00:38]} (24... Rgh8 $19 25. Qxg4 cxd4 26. cxd4 {[#]} Qb6 $1 {[%mdl 512]}) 25. Qe3 {[%emt 0:01:21]} g3 {[%emt 0:02:01]} 26. Rfc1 {[%emt 0:04:43]} ({Avoid the trap} 26. dxc5 $2 Be7 $19) 26... Rgh8 {[%emt 0:02:38]} ({Better is} 26... Bd8 $17 27. b4 Rgh8) 27. b4 {[%emt 0:02:49]} Be7 {[%emt 0:00:41]} 28. Kf1 {[%emt 0:00:27]} Rh1+ {[%emt 0:01:42]} 29. Ke2 {[%emt 0:00:08]} Rxc1 {[%emt 0:00:11]} 30. Rxc1 {[%emt 0:00:06]} cxb4 {[%emt 0:00:21]} 31. Nb3 {[%emt 0:03:36]} Qc4+ {[%emt 0:01:23]} 32. Kf3 {[%emt 0:01:57]} Kb8 {[%emt 0:00:13]} 33. cxb4 {[%emt 0:03:29]} Qxb4 {[%emt 0:01:42]} 34. Qc3 {[%emt 0:01:30]} Qxc3+ {[%emt 0:02:11]} 35. Rxc3 {[%emt 0:00:03]} Rh1 {[%emt 0:00:27]} 36. Kxg3 {[%emt 0:01:14]} Bb4 {[%emt 0:00:36]} (36... b6 $15) 37. Rc1 {[%emt 0:01:28]} Rxc1 {[%emt 0:00:41]} 38. Nxc1 {[%emt 0:00:03]} Bc3 {[%emt 0:00:21]} 39. Nb3 {[%emt 0:01:09]} a5 {[%emt 0:00:06]} 40. Kf3 {[%emt 0:02:26]} b5 {[%emt 0:00:51]} 41. Ke3 {[%emt 0:20:39]} bxa4 {[%emt 0:02:02]} 42. Nc1 {[%emt 0:00:48]} Bb2 {[%emt 0:01:00]} 43. Na2 {[%emt 0:00:24]} Kb7 {[%emt 0:00:18]} 44. g4 {[%emt 0:00:47]} Kb6 {[%emt 0:00:25]} 45. Kd3 {[%emt 0:06:15]} Ba3 $2 {[%emt 0:03:00]} (45... a3 $19 46. f5 exf5 47. gxf5 Kc7) 46. Nc3 {[%emt 0:05:40]} Bc1 {[%emt 0:00:36]} 47. f5 $19 {[%emt 0:00:52]} (47. Nxa4+ $11 Kb5 48. Nc3+ Kc6 49. Ne2) 47... a3 {[%emt 0:00:44]} 48. Kc2 {[%emt 0:03:08]} Be3 {[%emt 0:02:05]} 49. Kd3 {[%emt 0:02:55]} Bc1 {[%emt 0:00:54]} 50. Kc2 {[%emt 0:01:03]} Be3 {[%emt 0:00:30]} 51. Kd3 {[%emt 0:00:41]} 1/2-1/2

[Event "95th Caplin Hastings Congress"]
[Site "Hastings"]
[Date "2019.12.31"]
[Round "4.51"]
[White "Thatte, Nandinee"]
[Black "Faulks, Nick"]
[Result "1-0"]
[ECO "A67"]
[WhiteElo "1270"]
[BlackElo "1900"]
[Annotator "NA"]
[PlyCount "47"]
[EventDate "2019.12.28"]
[EventType "swiss"]
[EventCountry "ENG"]
[SourceTitle "playchess.com"]
[Source "ChessBase"]
[SourceQuality "1"]
[TimeControl "40/6600+30:3000+30"]

1. d4 {[%emt 0:09:34]} Nf6 {[%emt 0:09:43]} 2. c4 {[%emt 0:00:11]} c5 {[%emt 0:00:04]} 3. d5 {[%emt 0:00:10]} e6 {[%emt 0:00:19]} 4. Nc3 {[%emt 0:00:12]} exd5 {[%emt 0:00:15]} 5. cxd5 {[%emt 0:00:07]} d6 {[%emt 0:00:04]} 6. e4 {[%emt 0:00:14]} g6 {[%emt 0:00:07]} 7. f4 {[%emt 0:00:19]} Bg7 {[%emt 0:00:10]} 8. Bb5+ {[%emt 0:00:31]} Nfd7 {[%emt 0:00:16]} 9. a4 {[%emt 0:00:19]} O-O {[%emt 0:00:32]} 10. Nf3 {[%emt 0:00:49]} Na6 {[%emt 0:00:46]} 11. O-O {[%emt 0:01:40]} Nb4 {[%emt 0:00:38]} 12. Re1 {[%emt 0:01:51]} a6 {[%emt 0:01:14]} 13. Bf1 {[%emt 0:03:17]} Re8 {[%emt 0:02:33]} 14. h3 {[%emt 0:11:02]} Nf6 {[%emt 0:19:37]} 15. Bc4 {[%emt 0:23:33]} Nd7 {[%emt 0:14:33]} 16. Be3 {[%emt 0:13:13]} Nb6 {[%emt 0:08:23]} 17. Bf1 {[%emt 0:06:30]} f5 {[%emt 0:16:06]} 18. e5 {[%emt 0:10:37]} dxe5 {[%emt 0:01:45]} 19. d6 {[%emt 0:01:25]} e4 {[%emt 0:03:50]} 20. Bxc5 {[%emt 0:08:47]} exf3 {[%emt 0:07:21]} 21. Rxe8+ {[%emt 0:02:46]} Qxe8 {[%emt 0:00:12]} 22. Bxb6 {[%emt 0:00:52]} Qc6 {[%emt 0:02:30]} 23. Qb3+ {[%emt 0:01:26]} Kh8 {[%emt 0:00:21]} 24. Qxb4 {[%emt 0:01:01]} 1-0

[Event "95th Caplin Hastings Congress"]
[Site "Hastings"]
[Date "2019.12.31"]
[Round "4.52"]
[White "Merriman, James"]
[Black "Kumar, Soham"]
[Result "1-0"]
[ECO "A57"]
[WhiteElo "1895"]
[BlackElo "1512"]
[Annotator "NA"]
[PlyCount "123"]
[EventDate "2019.12.28"]
[EventType "swiss"]
[EventCountry "ENG"]
[SourceTitle "playchess.com"]
[Source "ChessBase"]
[SourceQuality "1"]
[TimeControl "40/6600+30:3000+30"]

1. d4 {[%emt 0:09:41]} Nf6 {[%emt 0:09:34]} 2. c4 {[%emt 0:00:08]} c5 {[%emt 0:00:03]} 3. d5 {[%emt 0:00:02]} b5 {[%emt 0:00:06]} 4. a4 {[%emt 0:00:03]} b4 {[%emt 0:00:23]} 5. Nd2 {[%emt 0:00:06]} d6 {[%emt 0:00:07]} 6. e4 {[%emt 0:00:04]} Nbd7 {[%emt 0:00:12]} 7. f4 {[%emt 0:00:33]} g6 {[%emt 0:00:17]} 8. Ngf3 {[%emt 0:00:09]} Bg7 {[%emt 0:00:29]} 9. Bd3 {[%emt 0:01:18]} O-O {[%emt 0:01:00]} 10. O-O {[%emt 0:00:06]} Qc7 {[%emt 0:04:11]} 11. Qe2 {[%emt 0:02:42]} Ba6 {[%emt 0:04:28]} 12. Rb1 {[%emt 0:00:31]} Ng4 {[%emt 0:20:48]} 13. b3 {[%emt 0:02:47]} Rae8 {[%emt 0:18:11]} 14. Bb2 $16 {[%emt 0:03:11]} Bh6 {[%emt 0:10:15]} 15. Nh4 {[%emt 0:02:49]} Ngf6 {[%emt 0:00:42]} 16. g4 {[%emt 0:04:40]} Bg7 {[%emt 0:00:54]} 17. e5 {[%emt 0:00:25]} dxe5 {[%emt 0:06:45]} 18. fxe5 {[%emt 0:02:04]} Nxd5 {[%emt 0:02:41]} 19. cxd5 {[%emt 0:00:31]} Bxd3 {[%emt 0:00:17]} 20. Qxd3 {[%emt 0:00:12]} Nxe5 {[%emt 0:00:13]} 21. Qe4 {[%emt 0:04:09]} e6 {[%emt 0:02:25]} 22. Bxe5 {[%emt 0:05:56]} Bxe5 {[%emt 0:00:16]} 23. Nhf3 {[%emt 0:00:35]} exd5 {[%emt 0:01:38]} 24. Qxd5 {[%emt 0:00:22]} Bxh2+ {[%emt 0:04:41]} 25. Nxh2 {[%emt 0:11:24]} Re2 {[%emt 0:00:49]} 26. Rf2 {[%emt 0:00:19]} Rxf2 {[%emt 0:00:09]} 27. Kxf2 {[%emt 0:00:09]} Qxh2+ {[%emt 0:00:05]} 28. Qg2 {[%emt 0:01:48]} Qf4+ {[%emt 0:00:31]} 29. Kg1 {[%emt 0:00:28]} Rd8 {[%emt 0:00:53]} 30. Nf1 {[%emt 0:05:46]} Rd4 {[%emt 0:01:46]} 31. Kh1 {[%emt 0:02:22]} Qg5 {[%emt 0:02:20]} 32. Nh2 {[%emt 0:02:27]} Rd2 {[%emt 0:00:11]} 33. Qe4 {[%emt 0:01:03]} Rf2 {[%emt 0:06:55]} 34. Re1 {[%emt 0:01:21]} Qd2 {[%emt 0:02:13]} 35. Nf1 {[%emt 0:02:58]} Qa2 {[%emt 0:04:38]} 36. Qe8+ {[%emt 0:01:36]} Kg7 {[%emt 0:00:08]} 37. Qe5+ {[%emt 0:00:08]} Kg8 {[%emt 0:00:36]} 38. Qxc5 {[%emt 0:00:39]} Re2 {[%emt 0:03:38]} 39. Rxe2 {[%emt 0:02:31]} Qxe2 {[%emt 0:00:09]} 40. Qc4 {[%emt 0:00:12]} Qf3+ {[%emt 0:00:35]} 41. Kg1 {[%emt 0:50:13]} Qb7 {[%emt 0:51:25]} 42. Ng3 {[%emt 0:01:11]} Qf3 {[%emt 0:03:51]} 43. Kh2 {[%emt 0:01:16]} Qf2+ {[%emt 0:00:08]} 44. Kh3 {[%emt 0:00:08]} Qb6 {[%emt 0:00:20]} 45. Qe4 {[%emt 0:01:39]} Qc5 {[%emt 0:07:12]} 46. Qf3 {[%emt 0:02:14]} Qb6 {[%emt 0:00:32]} 47. Ne4 {[%emt 0:03:40]} Kg7 {[%emt 0:00:02]} 48. g5 {[%emt 0:00:43]} Qe6+ {[%emt 0:00:04]} 49. Kg3 {[%emt 0:01:19]} Qe8 {[%emt 0:01:51]} 50. Qf6+ {[%emt 0:01:27]} Kg8 {[%emt 0:00:06]} 51. Qd4 {[%emt 0:00:36]} Qb8+ {[%emt 0:00:56]} 52. Kh3 {[%emt 0:02:11]} Qc8+ {[%emt 0:00:19]} 53. Kh4 {[%emt 0:00:11]} Qb8 {[%emt 0:00:14]} 54. Nf6+ {[%emt 0:00:15]} Kf8 {[%emt 0:00:02]} 55. Nd7+ {[%emt 0:00:10]} Ke8 {[%emt 0:00:09]} 56. Nxb8 {[%emt 0:00:06]} Kf8 {[%emt 0:00:06]} 57. Qd8+ {[%emt 0:00:26]} Kg7 {[%emt 0:00:09]} 58. Qf6+ {[%emt 0:00:15]} Kg8 {[%emt 0:00:03]} 59. Nc6 {[%emt 0:00:28]} a5 {[%emt 0:00:05]} 60. Ne5 {[%emt 0:00:09]} h5 {[%emt 0:00:05]} 61. Qxf7+ {[%emt 0:00:07]} Kh8 {[%emt 0:00:08]} 62. Nxg6# {[%emt 0:00:37]} 1-0

[Event "95th Caplin Hastings Congress"]
[Site "Hastings"]
[Date "2019.12.31"]
[Round "4.53"]
[White "Sandhu, Manvith"]
[Black "Metcalfe, Charlie P"]
[Result "0-1"]
[ECO "C01"]
[WhiteElo "1673"]
[BlackElo "1867"]
[Annotator "NA"]
[PlyCount "68"]
[EventDate "2019.12.28"]
[EventType "swiss"]
[EventCountry "ENG"]
[SourceTitle "playchess.com"]
[Source "ChessBase"]
[SourceQuality "1"]
[TimeControl "40/6600+30:3000+30"]

1. e4 {[%emt 0:09:32]} e6 {[%emt 0:09:58]} 2. d4 {[%emt 0:00:11]} d5 {[%emt 0:00:02]} 3. Bd3 {[%emt 0:00:06]} dxe4 {[%emt 0:00:04]} 4. Bxe4 {[%emt 0:00:10]} Nf6 {[%emt 0:00:04]} 5. Bf3 {[%emt 0:00:06]} c5 {[%emt 0:00:05]} 6. Ne2 {[%emt 0:00:05]} Nc6 {[%emt 0:00:04]} 7. Be3 {[%emt 0:00:13]} cxd4 {[%emt 0:00:04]} 8. Nxd4 {[%emt 0:00:12]} Ne5 {[%emt 0:00:04]} 9. Nc3 {[%emt 0:00:14]} a6 {[%emt 0:00:19]} 10. Qe2 {[%emt 0:03:13]} Nxf3+ {[%emt 0:00:16]} 11. Qxf3 {[%emt 0:00:18]} e5 {[%emt 0:00:09]} 12. Nb3 {[%emt 0:10:44]} Bb4 {[%emt 0:00:18]} 13. Bg5 {[%emt 0:00:58]} O-O {[%emt 0:38:57]} 14. a3 {[%emt 0:04:48]} Bxc3+ {[%emt 0:09:51]} 15. Qxc3 {[%emt 0:00:13]} h6 {[%emt 0:00:49]} 16. Bh4 {[%emt 0:01:05]} g5 {[%emt 0:05:27]} 17. Bg3 {[%emt 0:01:17]} Ne4 {[%emt 0:02:55]} 18. Qf3 {[%emt 0:15:22]} Nxg3 {[%emt 0:09:31]} 19. hxg3 {[%emt 0:01:35]} Qd6 {[%emt 0:02:26]} 20. Rd1 {[%emt 0:04:42]} Qg6 {[%emt 0:12:41]} 21. Nc5 {[%emt 0:13:07]} e4 {[%emt 0:05:37]} 22. Qe3 {[%emt 0:02:59]} Bg4 {[%emt 0:04:41]} 23. Rd4 {[%emt 0:05:39]} Qc6 {[%emt 0:05:18]} 24. Nb3 {[%emt 0:13:07]} Rad8 {[%emt 0:01:54]} 25. c4 {[%emt 0:10:09]} Qxc4 {[%emt 0:02:12]} 26. Rxh6 {[%emt 0:05:44]} Qb5 {[%emt 0:02:52]} 27. Rhd6 {[%emt 0:07:03]} Rxd6 {[%emt 0:01:25]} 28. Rxd6 {[%emt 0:00:06]} Rc8 {[%emt 0:00:43]} 29. Nd4 {[%emt 0:04:21]} Qc5 {[%emt 0:01:12]} 30. Rh6 {[%emt 0:04:06]} Rd8 {[%emt 0:00:35]} 31. Ne2 {[%emt 0:03:18]} Qd5 {[%emt 0:00:12]} 32. Qc1 {[%emt 0:00:37]} Qb5 {[%emt 0:00:56]} 33. Nc3 {[%emt 0:00:20]} Qc5 {[%emt 0:01:10]} 34. f3 {[%emt 0:00:47]} Qg1+ {[%emt 0:00:10]} 0-1

[Event "95th Caplin Hastings Congress"]
[Site "Hastings"]
[Date "2019.12.31"]
[Round "4.54"]
[White "Cresswell, Mike J"]
[Black "Kearsley, Raymond J"]
[Result "1/2-1/2"]
[ECO "D00"]
[WhiteElo "1662"]
[BlackElo "1624"]
[Annotator "NA"]
[PlyCount "53"]
[EventDate "2019.12.28"]
[EventType "swiss"]
[EventCountry "ENG"]
[SourceTitle "playchess.com"]
[Source "ChessBase"]
[SourceQuality "1"]
[TimeControl "40/6600+30:3000+30"]

1. e4 {[%emt 0:09:33]} d5 {[%emt 0:09:36]} 2. d4 {[%emt 0:00:07]} dxe4 {[%emt 0:00:07]} 3. Nc3 {[%emt 0:00:09]} Nf6 {[%emt 0:00:06]} 4. f3 {[%emt 0:00:11]} exf3 {[%emt 0:00:08]} 5. Nxf3 {[%emt 0:00:06]} Bf5 {[%emt 0:00:11]} 6. Bc4 {[%emt 0:01:33]} e6 {[%emt 0:00:38]} 7. O-O {[%emt 0:00:56]} Be7 {[%emt 0:01:18]} 8. Ne2 {[%emt 0:02:19]} O-O {[%emt 0:01:45]} 9. c3 {[%emt 0:01:33]} Be4 {[%emt 0:02:39]} 10. Ng3 {[%emt 0:01:29]} Bd5 {[%emt 0:00:55]} 11. Bd3 {[%emt 0:02:50]} c5 {[%emt 0:01:15]} 12. Kh1 {[%emt 0:03:22]} Nc6 {[%emt 0:01:29]} 13. Be3 {[%emt 0:02:06]} cxd4 {[%emt 0:01:37]} 14. Nxd4 {[%emt 0:01:17]} Ne5 {[%emt 0:01:29]} 15. Bb1 {[%emt 0:08:24]} Bc4 {[%emt 0:04:42]} 16. Re1 {[%emt 0:05:20]} Neg4 {[%emt 0:03:39]} 17. Bg1 {[%emt 0:02:05]} Qc7 {[%emt 0:05:42]} 18. Ne4 {[%emt 0:04:58]} Rad8 {[%emt 0:02:23]} 19. Nxf6+ {[%emt 0:08:17]} Nxf6 {[%emt 0:00:08]} 20. Qf3 {[%emt 0:02:15]} Bd5 {[%emt 0:00:58]} 21. Qh3 {[%emt 0:01:29]} g6 {[%emt 0:06:30]} 22. Bc2 {[%emt 0:09:03]} Qf4 {[%emt 0:21:44]} 23. Bd1 {[%emt 0:09:29]} e5 {[%emt 0:05:54]} 24. Be3 {[%emt 0:04:44]} Qe4 {[%emt 0:04:33]} 25. Bf3 {[%emt 0:07:24]} Qd3 {[%emt 0:00:11]} 26. Be2 {[%emt 0:02:05]} Qe4 {[%emt 0:03:00]} 27. Bf3 {[%emt 0:00:19]} 1/2-1/2

[Event "95th Caplin Hastings Congress"]
[Site "Hastings"]
[Date "2019.12.31"]
[Round "4.55"]
[White "Lakshmi Raja Perumal K"]
[Black "Sugden, John N"]
[Result "0-1"]
[ECO "B43"]
[WhiteElo "1492"]
[BlackElo "2065"]
[Annotator "NA"]
[PlyCount "80"]
[EventDate "2019.12.28"]
[EventType "swiss"]
[EventCountry "ENG"]
[SourceTitle "playchess.com"]
[Source "ChessBase"]
[SourceQuality "1"]
[TimeControl "40/6600+30:3000+30"]

1. e4 {[%emt 1:20:19]} c5 {[%emt 0:00:26]} 2. Nf3 {[%emt 0:00:24]} e6 {[%emt 0:00:19]} 3. d4 {[%emt 0:02:38]} cxd4 {[%emt 0:00:10]} 4. Nxd4 {[%emt 0:00:07]} a6 {[%emt 0:00:25]} 5. Nc3 {[%emt 0:05:27]} b5 {[%emt 0:00:38]} 6. Bd3 {[%emt 0:01:24]} Bb7 {[%emt 0:00:32]} 7. O-O {[%emt 0:05:56]} Qc7 {[%emt 0:00:31]} 8. a4 {[%emt 0:05:53] B43: Sicilian: Kan Variation: 5 Nc3} (8. Re1 Bc5 9. Be3 d6 10. Bxb5+ axb5 11. Ndxb5 Qc6 12. Bxc5 dxc5 13. Nd6+ Ke7 14. Nf5+ Ke8 15. Nxg7+ Kf8 16. Nh5 {0-1 (66) Delgado Ramirez,N (2622)-Bachmann,A (2627) Asuncion 2017}) 8... b4 {[%emt 0:06:53]} 9. Nce2 {[%emt 0:00:29]} Nf6 {[%emt 0:02:44]} 10. Ng3 {[%emt 0:06:45]} Nc6 {[%emt 0:06:29]} 11. c3 $146 {[%emt 0:03:22]} ({Predecessor:} 11. Nxc6 Bxc6 12. Qe2 Qb7 13. f4 Bc5+ 14. Be3 Bxe3+ 15. Qxe3 {1-0 (36) Sindoni,A (1931)-Rubini,A (1917) Fano 2012}) 11... bxc3 {[%emt 0:04:18]} 12. bxc3 {[%emt 0:00:52]} Be7 {[%emt 0:01:09]} 13. Be3 {[%emt 0:09:39]} O-O {[%emt 0:01:04]} 14. Nh5 {[%emt 0:05:55]} Ne5 {[%emt 0:10:26]} 15. Bf4 {[%emt 0:13:03]} Nxh5 {[%emt 0:04:30]} 16. Qxh5 {[%emt 0:00:31]} Bf6 {[%emt 0:01:43]} 17. Rac1 {[%emt 0:13:49]} g6 {[%emt 0:03:49]} 18. Qg4 {[%emt 0:06:30]} Nxg4 {[%emt 0:10:57]} 19. Bxc7 {[%emt 0:00:21]} Rfc8 {[%emt 0:03:39]} 20. Bb6 {[%emt 0:04:03]} (20. Bg3 $17) 20... Ne5 {[%emt 0:03:15]} 21. Bb1 {[%emt 0:00:23]} Nc4 {[%emt 0:03:14]} 22. a5 {[%emt 0:00:48]} Nd2 {[%emt 0:01:44]} 23. Rfd1 {[%emt 0:04:58]} Nxb1 {[%emt 0:01:26]} 24. Rxb1 {[%emt 0:00:09]} Bxe4 {[%emt 0:00:42]} 25. Rb2 {[%emt 0:04:10]} Rxc3 {[%emt 0:02:46]} 26. f3 {[%emt 0:04:44]} Bd5 {[%emt 0:01:08]} 27. Ne2 {[%emt 0:00:52]} Rxf3 {[%emt 0:02:55]} 28. gxf3 {[%emt 0:04:04]} Bxb2 {[%emt 0:00:11]} 29. Nf4 {[%emt 0:01:16]} Bc6 {[%emt 0:02:29]} 30. Nd3 {[%emt 0:01:01]} Bg7 {[%emt 0:05:20]} 31. Nc5 {[%emt 0:00:11]} d5 {[%emt 0:00:40]} 32. Rc1 {[%emt 0:00:11]} Bb5 {[%emt 0:01:20]} 33. Kg2 {[%emt 0:02:28]} Rc8 {[%emt 0:02:12]} 34. Rb1 {[%emt 0:00:13]} Bf8 {[%emt 0:03:38]} 35. Rxb5 {[%emt 0:00:44]} axb5 {[%emt 0:00:07]} 36. Nd7 {[%emt 0:02:13]} b4 {[%emt 0:02:10]} 37. a6 {[%emt 0:00:10]} b3 $19 {[%emt 0:01:55]} 38. a7 {[%emt 0:03:00]} Ra8 {[%emt 0:01:40]} 39. Bd4 {[%emt 0:00:46]} Bg7 {[%emt 0:00:33]} 40. Bxg7 {[%emt 0:00:38]} Kxg7 {[%emt 0:00:09]} 0-1